bitfinex/quotes_ETHUSD_20250814
["timestamp","ask_amount","ask_price","bid_price","bid_amount"]
[1755203046337,4.5694,4544.3,4544.2,1.23]
[1755203047091,3.441,4544.3,4544.2,3.43060736]
[1755203047400,4.5694,4544.3,4544.2,1.23]
[1755203047597,3.441,4544.3,4544.2,1.23]
[1755203048041,4.4348,4544.3,4544.2,4.66060736]
[1755203048557,4.5694,4544.3,4544.2,2.46]
[1755203049616,4.5694,4544.3,4544.2,3.69]
[1755203049948,3.441,4544.3,4544.2,3.69]
[1755203050142,3.44,4544.8,4544.4,2.20047106]
[1755203050383,0.002,4544.5,4544.4,2.20051051]
[1755203050944,0.002,4544.5,4544.4,2.66081051]
[1755203051178,0.002,4544.5,4544.4,3.89081051]
[1755203051375,0.002,4544.5,4544.4,3.43051051]
[1755203051760,0.002,4544.5,4544.4,3.54091051]
[1755203052494,0.002,4544.5,4544.4,4.00121051]
[1755203052693,0.002,4544.5,4544.4,6.23761051]
[1755203053081,0.002,4544.5,4544.4,11.23443217]
[1755203053286,0.002,4544.8,4544.4,11.23443217]
[1755203053287,1e-08,4544.8,4544.7,9.62527201]
[1755203053657,1e-08,4544.8,4544.7,2.20036526]
[1755203054258,1e-08,4544.8,4544.7,3.43036526]
[1755203055714,1e-08,4544.8,4544.7,4.66036526]
[1755203057236,1e-08,4544.8,4544.7,5.89036526]
[1755203057918,1e-08,4544.8,4544.7,3.69]
[1755203058099,0.99380001,4544.8,4544.7,3.69]
[1755203058305,1.43240001,4544.8,4544.7,3.69]
[1755203058487,1.43240001,4544.8,4544.7,4.92]
[1755203058671,4.18271685,4544.8,4544.7,4.92]
[1755203058912,7.18271685,4544.8,4544.7,4.92]
[1755203059895,7.18271685,4544.8,4544.7,6.15]
[1755203060368,7.38497924,4544.8,4544.7,6.15]
[1755203060701,7.85096213,4544.8,4544.7,6.15]
[1755203061291,7.85096213,4544.8,4544.7,7.38]
[1755203061494,9.18931685,4544.8,4544.7,7.38]
[1755203061670,10.64601685,4544.8,4544.7,7.38]
[1755203061871,8.44570001,4544.8,4544.7,7.38]
[1755203062071,10.18471685,4544.8,4544.7,7.38]
[1755203062486,10.64601685,4544.8,4544.7,7.38]
[1755203062702,10.64601685,4544.8,4544.7,8.61]
[1755203062873,6.98900001,4544.8,4544.7,8.61]
[1755203063315,3.55000001,4544.8,4544.7,8.61]
[1755203063480,4.09940001,4544.8,4544.7,8.61]
[1755203063673,3.43900001,4544.8,4544.7,8.61]
[1755203064073,3.43900001,4544.8,4544.7,9.84]
[1755203064293,3.43900001,4544.8,4544.7,12.04036526]
[1755203064497,3.43900001,4544.8,4544.7,9.84]
[1755203065434,3.43900001,4544.8,4544.7,11.07]
[1755203066297,8.44570001,4544.8,4544.7,11.07]
[1755203066627,9.22623054,4544.8,4544.7,11.07]
[1755203066931,9.22623054,4544.8,4544.7,12.3]
[1755203066932,7.76853054,4544.8,4544.7,12.3]
[1755203067078,9.96884738,4544.8,4544.7,12.3]
[1755203067435,4.76853054,4544.8,4544.7,12.3]
[1755203067719,3.43800001,4544.8,4544.7,12.3]
[1755203067918,1e-08,4544.8,4544.7,15.93966526]
[1755203068116,1e-08,4544.8,4544.7,18.11007761]
[1755203068415,1e-08,4544.8,4544.7,17.28006526]
[1755203068714,1e-08,4544.8,4544.7,20.71806526]
[1755203068931,1e-08,4544.8,4544.7,16.29966526]
[1755203069091,1e-08,4544.8,4544.7,15.84076526]
[1755203069491,1e-08,4544.8,4544.7,13.53]
[1755203069677,1e-08,4544.8,4544.7,14.76]
[1755203070777,2.75031685,4544.8,4544.7,14.76]
[1755203070990,3.74571685,4544.8,4544.7,15.99]
[1755203071405,2.75031685,4544.8,4544.7,15.99]
[1755203071712,0.55000001,4544.8,4544.7,15.99]
[1755203072479,0.55000001,4544.8,4544.7,17.22]
[1755203073517,0.11040001,4544.8,4544.7,17.6789]
[1755203073894,0.11040001,4544.8,4544.7,18.9089]
[1755203074092,1e-08,4544.8,4544.7,23.2292445]
[1755203074292,1e-08,4544.8,4544.7,26.6672445]
[1755203075206,1e-08,4544.8,4544.7,23.31966526]
[1755203076513,2.19916375,4547.2,4544.9,3.0]
[1755203076822,2.19916375,4547.2,4546.1,2.19964028]
[1755203076823,0.55,4547.1,4546.1,2.19964028]
[1755203076983,0.1096,4546.4,4545.8,3.438]
[1755203077180,0.40769618,4547.2,4545.9,1.4393]
[1755203077385,0.1096,4546.8,4546.1,0.1096]
[1755203077628,0.40769618,4547.2,4546.7,2.19939736]
[1755203077807,0.1096,4547.0,4546.7,2.19939736]
[1755203078124,0.1096,4547.0,4546.7,1.6889]
[1755203078423,0.1096,4547.0,4546.8,2.65824899]
[1755203078737,0.1096,4547.0,4546.8,2.65820362]
[1755203079519,3.438,4547.3,4547.1,2.1991691]
[1755203079722,0.1096,4547.2,4547.1,2.1991691]
[1755203079878,0.1096,4547.2,4547.1,2.6580691]
[1755203080079,0.1096,4547.2,4546.9,1.23]
[1755203080592,5.74925225,4547.0,4546.9,1.23]
[1755203080795,13.74374466,4547.0,4546.9,1.23]
[1755203081320,13.15859433,4547.0,4546.9,1.23]
[1755203081527,12.95501575,4547.0,4546.9,1.23]
[1755203081724,13.06461575,4547.0,4546.9,1.23]
[1755203082115,13.06461575,4547.0,4546.9,2.46]
[1755203082430,3.0,4547.5,4546.9,2.46]
[1755203082728,2.74915924,4547.2,4546.9,2.46]
[1755203082932,6.436,4547.4,4546.9,2.46]
[1755203083601,6.436,4547.4,4547.3,1.23]
[1755203083802,6.986,4547.4,4547.3,1.23]
[1755203083998,0.58515033,4548.1,4547.3,1.23]
[1755203084196,0.78020044,4548.5,4547.3,1.23]
[1755203084197,3.442,4548.0,4547.3,1.23]
[1755203084396,3.0,4547.9,4547.3,1.23]
[1755203084621,0.55,4547.9,4547.3,1.23]
[1755203084839,3.55,4547.9,4547.8,1.23]
[1755203085427,5.7488264,4547.9,4547.8,1.23]
[1755203086016,6.7442264,4547.9,4547.8,1.23]
[1755203086224,6.7442264,4547.9,4547.8,2.46]
[1755203086847,5.7488264,4547.9,4547.8,2.46]
[1755203087042,6.7442264,4547.9,4547.8,2.46]
[1755203087546,6.7442264,4547.9,4547.8,3.69]
[1755203087743,5.7488264,4547.9,4547.8,3.69]
[1755203089051,3.55,4547.9,4547.8,4.92]
[1755203089407,5.74881703,4547.9,4547.8,4.92]
[1755203090547,5.74881703,4547.9,4547.8,6.15]
[1755203090746,6.74421703,4547.9,4547.8,6.15]
[1755203091315,5.74881703,4547.9,4547.8,6.15]
[1755203091838,5.74881703,4547.9,4547.8,7.38]
[1755203092351,5.85841703,4547.9,4547.8,7.38]
[1755203093155,0.1096,4547.9,4547.8,8.61]
[1755203093307,5.74441703,4547.9,4547.8,8.61]
[1755203093515,3.5456,4547.9,4547.8,8.61]
[1755203093752,3.436,4547.9,4547.8,9.0771]
[1755203094053,3.5456,4547.9,4547.8,10.0355]
[1755203094415,0.1096,4547.9,4547.8,13.46436538]
[1755203094666,0.002,4548.4,4548.2,2.198672]
[1755203094886,3.6865,4548.3,4548.2,2.198672]
[1755203095231,3.6865,4548.3,4548.2,3.624172]
[1755203095825,3.6865,4548.3,4548.2,2.6555]
[1755203096110,3.6865,4548.3,4548.2,4.854172]
[1755203097151,3.6865,4548.3,4548.2,2.46]
[1755203098165,4.2365,4548.3,4548.2,2.46]
[1755203098528,4.2365,4548.3,4548.2,3.69]
[1755203099452,4.2365,4548.3,4548.2,7.314172]
[1755203099453,0.2495,4548.3,4548.2,7.314172]
[1755203099663,3.6905,4548.3,4548.2,8.26546358]
[1755203099989,3.6905,4548.3,4548.2,9.49546358]
[1755203100470,3.6905,4548.3,4548.2,7.585772]
[1755203100673,7.37552366,4548.3,4548.2,4.92]
[1755203100845,10.80572366,4548.3,4548.2,4.92]
[1755203101438,11.27486442,4548.3,4548.2,6.15]
[1755203102036,11.27686442,4548.3,4548.2,6.15]
[1755203102786,11.27686442,4548.3,4548.2,7.38]
[1755203104070,11.27686442,4548.3,4548.2,8.61]
[1755203104243,11.02736442,4548.3,4548.2,8.61]
[1755203104577,11.72211475,4548.3,4548.2,8.61]
[1755203105081,11.72211475,4548.3,4547.8,9.84]
[1755203105082,5.69881703,4547.9,4547.8,9.84]
[1755203105242,40.02189485,4547.9,4547.8,9.84]
[1755203105583,41.38849485,4547.9,4547.8,11.07]
[1755203106093,2.7490588,4547.4,4547.3,1.23]
[1755203106297,0.55,4546.9,4546.7,1.23]
[1755203106508,36.999,4546.8,4546.7,1.23]
[1755203106788,39.24283118,4546.8,4546.7,1.23]
[1755203106994,39.24383967,4546.8,4546.7,1.23]
[1755203107163,39.24383967,4546.8,4546.7,2.46]
[1755203107351,40.02699012,4546.8,4546.7,2.46]
[1755203107701,39.24383967,4546.8,4546.7,2.46]
[1755203108303,41.44318866,4546.8,4546.7,2.46]
[1755203108456,42.22583678,4546.8,4546.7,2.46]
[1755203108658,42.22583678,4546.8,4546.7,3.69]
[1755203108858,41.44318866,4546.8,4546.7,3.69]
[1755203109083,41.01298866,4546.8,4546.7,3.69]
[1755203110092,41.01298866,4546.8,4546.7,4.92]
[1755203110396,10.80894345,4546.8,4546.7,4.92]
[1755203110603,9.66849824,4546.8,4546.7,4.92]
[1755203111603,9.66849824,4546.8,4546.7,6.15]
[1755203111604,6.21949824,4546.8,4546.7,6.15]
[1755203111803,9.66849824,4546.8,4546.7,6.15]
[1755203112486,9.19834899,4546.8,4546.7,6.15]
[1755203112913,9.19834899,4546.8,4546.7,7.38]
[1755203113619,10.13474899,4546.8,4546.7,7.38]
[1755203113914,10.60379186,4546.8,4546.7,7.38]
[1755203114106,10.13474899,4546.8,4546.7,7.38]
[1755203114291,9.19834899,4546.8,4546.7,8.61]
[1755203114822,4.01899438,4546.8,4546.7,8.61]
[1755203115116,4.01899438,4546.8,4546.7,9.0771]
[1755203115117,3.455,4546.8,4546.7,9.0771]
[1755203115318,6.455,4546.8,4546.7,8.61]
[1755203115525,3.455,4546.8,4546.7,8.61]
[1755203115686,4.005,4546.8,4546.7,10.3071]
[1755203116290,7.1146,4546.8,4546.7,10.3071]
[1755203117139,7.1146,4546.8,4546.7,11.5371]
[1755203117626,9.31394899,4546.8,4546.7,11.07]
[1755203117831,41.14950287,4546.8,4546.7,2.46619666]
[1755203118027,9.78090287,4546.8,4546.7,2.46619666]
[1755203118689,9.78090287,4546.8,4546.7,3.69619666]
[1755203119235,9.20334899,4546.8,4546.7,3.69619666]
[1755203119543,0.70290194,4548.3,4546.8,2.1993262]
[1755203119842,0.70290194,4548.3,4546.7,5.49131633]
[1755203119843,0.1096,4547.5,4546.9,1.4255]
[1755203119985,0.1096,4547.5,4546.9,3.73435752]
[1755203120341,3.456,4547.4,4547.0,2.20551739]
[1755203120643,3.456,4547.4,4547.3,2.19910716]
[1755203120993,3.456,4547.4,4547.3,3.62460716]
[1755203121198,3.456,4547.4,4547.3,1.4255]
[1755203121398,3.456,4547.4,4547.3,2.6555]
[1755203122734,0.1096,4547.7,4547.3,3.8855]
[1755203123034,3.456,4547.6,4547.5,2.19901044]
[1755203123234,3.456,4547.6,4547.5,3.55321044]
[1755203124031,3.455,4547.6,4547.5,1.3542]
[1755203124232,3.455,4547.6,4547.5,4.78321044]
[1755203124417,0.002,4548.3,4547.5,4.78321044]
[1755203124418,0.002,4548.3,4548.2,2.198672]
[1755203124628,3.457,4548.3,4547.6,1.3542]
[1755203124819,3.457,4548.3,4547.8,2.19886015]
[1755203125038,3.457,4548.3,4547.9,1.3542]
[1755203125039,0.1096,4548.1,4547.9,1.3542]
[1755203125234,0.1096,4548.1,4548.0,3.55296868]
[1755203125443,3.455,4548.1,4548.0,3.55296868]
[1755203125641,3.455,4548.1,4548.0,4.78296868]
[1755203126231,0.002,4548.3,4548.2,2.198672]
[1755203126442,3.456,4548.3,4548.2,2.198672]
[1755203126736,0.55,4548.2,4548.0,1.23]
[1755203126935,0.55,4548.2,4548.0,1.6584]
[1755203127138,0.55,4548.2,4548.1,1.23]
[1755203127500,0.6596,4548.2,4548.1,1.23]
[1755203128535,0.6596,4548.2,4548.1,2.46]
[1755203129363,1.6638,4548.2,4548.1,2.46]
[1755203129548,3.862472,4548.2,4548.1,2.46]
[1755203129752,2.858272,4548.2,4548.1,2.46]
[1755203129945,2.858272,4548.2,4548.1,3.69]
[1755203131430,2.858272,4548.2,4548.1,4.92]
[1755203131431,6.312272,4548.2,4548.1,4.92]
[1755203132362,7.316472,4548.2,4548.1,4.92]
[1755203132727,7.755872,4548.2,4548.1,6.15]
[1755203133463,10.755872,4548.2,4548.1,6.15]
[1755203134168,10.316472,4548.2,4548.1,7.38]
[1755203134540,9.312272,4548.2,4548.1,7.38]
[1755203135453,9.313272,4548.2,4548.1,8.61]
[1755203135973,11.22641735,4548.2,4548.1,8.61]
[1755203136477,11.22641735,4548.2,4548.1,3.9041531]
[1755203136647,11.34101964,4548.2,4548.1,3.9041531]
[1755203136972,11.34101964,4548.2,4548.1,5.1341531]
[1755203138266,11.54492594,4548.2,4548.1,5.1341531]
[1755203138476,12.13121485,4548.2,4548.1,6.3641531]
[1755203139174,43.85547373,4548.2,4548.1,5.8141531]
[1755203139374,43.85547373,4548.2,4548.0,0.04207741]
[1755203139375,4.874,4548.1,4548.0,0.04207741]
[1755203139673,37.31728661,4548.1,4548.0,0.04207741]
[1755203139853,37.31728661,4548.1,4548.0,1.27207741]
[1755203140246,37.85135188,4548.1,4548.0,1.27207741]
[1755203140559,5.74934899,4546.8,4546.2,0.001]
[1755203140739,9.67289434,4546.8,4546.2,0.001]
[1755203140943,9.78249434,4546.8,4546.2,0.001]
[1755203141357,9.78249434,4546.8,4546.7,4.92619666]
[1755203141553,11.22609434,4546.8,4546.7,4.92619666]
[1755203141857,41.6337368,4546.8,4546.7,4.92619666]
[1755203142268,10.99051086,4546.8,4546.7,4.92619666]
[1755203142572,9.98531086,4546.8,4546.7,4.92619666]
[1755203142751,9.98531086,4546.8,4546.7,6.15619666]
[1755203143169,9.78149434,4546.8,4546.7,6.15619666]
[1755203143364,10.78569434,4546.8,4546.7,6.15619666]
[1755203144092,11.22509434,4546.8,4546.7,6.15619666]
[1755203144282,11.22509434,4546.8,4546.7,7.38619666]
[1755203144687,7.77209434,4546.8,4546.7,7.38619666]
[1755203144880,11.22409434,4546.8,4546.7,7.38619666]
[1755203145067,11.42788059,4546.8,4546.7,7.38619666]
[1755203145266,11.22409434,4546.8,4546.7,7.38619666]
[1755203145470,41.21437567,4546.8,4546.7,7.38619666]
[1755203145774,3.55,4546.7,4546.2,0.001]
[1755203145957,3.6596,4546.3,4546.2,0.001]
[1755203146158,37.98859816,4546.3,4546.2,0.001]
[1755203146351,39.43219816,4546.3,4546.2,0.001]
[1755203147218,2.74983281,4545.8,4545.7,0.001]
[1755203147555,2.74983281,4545.8,4544.7,20.91]
[1755203147556,2.75031684,4544.8,4544.7,20.91]
[1755203147725,9.20331684,4544.8,4544.7,20.91]
[1755203148486,9.20331684,4544.8,4544.7,22.14]
[1755203149307,9.67124451,4544.8,4544.7,22.14]
[1755203149485,11.11484451,4544.8,4544.7,22.14]
[1755203149677,37.22244451,4544.8,4544.7,22.14]
[1755203149879,39.67324451,4544.8,4544.7,23.37]
[1755203150105,9.67324451,4544.8,4544.7,23.37]
[1755203150274,9.20531684,4544.8,4544.7,23.37]
[1755203150984,11.11688412,4544.8,4544.7,23.2204849]
[1755203151188,41.11688412,4544.8,4544.7,24.4504849]
[1755203151437,5.75080109,4543.8,4543.5,1.23]
[1755203151625,14.48680109,4543.8,4543.5,1.23]
[1755203152029,14.48780109,4543.8,4543.7,0.4648]
[1755203152228,14.48780109,4543.8,4543.7,1.569]
[1755203152437,14.48780109,4543.8,4543.7,1.231]
[1755203152736,14.48680109,4543.8,4543.7,1.231]
[1755203153798,14.48680109,4543.8,4543.7,2.461]
[1755203155439,14.48680109,4543.8,4543.7,3.691]
[1755203156139,14.65249502,4543.8,4543.7,3.691]
[1755203156740,14.65249502,4543.8,4543.7,5.3848]
[1755203157647,14.76289502,4543.8,4543.7,5.3848]
[1755203157847,16.08689502,4543.8,4543.7,4.921]
[1755203158049,14.76289502,4543.8,4543.7,6.151]
[1755203158855,14.75889502,4543.8,4543.7,6.6148]
[1755203159051,14.75889502,4543.8,4543.7,6.151]
[1755203159460,14.75889502,4543.8,4543.7,7.381]
[1755203159656,14.75789502,4543.8,4543.7,7.8448]
[1755203159879,8.8414,4543.8,4543.7,8.949]
[1755203160221,11.04220109,4543.8,4543.7,8.949]
[1755203160422,11.59220109,4543.8,4543.7,8.949]
[1755203160954,11.59220109,4543.8,4543.7,10.179]
[1755203162276,11.59220109,4543.8,4543.7,11.409]
[1755203162480,5.3904,4543.8,4543.7,10.3048]
[1755203162631,8.8384,4543.8,4543.7,11.409]
[1755203162832,9.3884,4543.8,4543.7,11.409]
[1755203163142,11.58920109,4543.8,4543.7,11.409]
[1755203163465,9.3884,4543.8,4543.7,11.409]
[1755203163664,9.3884,4543.8,4543.7,12.639]
[1755203163872,12.3884,4543.8,4543.7,12.639]
[1755203164369,5.3904,4543.8,4543.7,12.639]
[1755203164666,8.8374,4543.8,4543.7,12.639]
[1755203164827,14.58820109,4543.8,4543.7,11.5348]
[1755203165026,14.58820109,4543.8,4543.7,12.301]
[1755203166360,15.05614019,4543.8,4543.7,12.301]
[1755203166596,15.05614019,4543.8,4543.7,13.531]
[1755203167268,15.05414019,4543.8,4543.7,13.531]
[1755203167589,15.05614019,4543.8,4543.7,13.531]
[1755203167952,15.05614019,4543.8,4543.7,14.761]
[1755203169290,16.93071919,4543.8,4543.7,13.51356694]
[1755203169463,17.01758715,4543.8,4543.7,13.51356694]
[1755203169666,17.01758715,4543.8,4543.6,0.001]
[1755203169667,5.75084952,4543.7,4543.6,0.001]
[1755203169882,7.40671991,4543.7,4543.6,0.001]
[1755203170059,8.49331991,4543.7,4543.6,0.001]
[1755203170482,8.18023558,4543.7,4543.6,0.001]
[1755203170655,8.18023558,4543.7,4543.6,1.231]
[1755203170868,38.18023558,4543.7,4543.6,1.231]
[1755203171067,39.27297676,4543.7,4542.3,0.001]
[1755203171274,1.874,4542.8,4542.3,0.001]
[1755203171502,39.31581042,4542.8,4542.3,0.001]
[1755203171710,39.31581042,4542.8,4541.4,4.1538]
[1755203171711,0.55,4541.9,4541.4,3.69]
[1755203172038,5.75191566,4541.5,4541.4,3.69]
[1755203172180,15.26881231,4541.5,4541.4,3.69]
[1755203172382,15.73675141,4541.5,4541.4,3.69]
[1755203172622,15.1511761,4541.5,4541.4,4.1538]
[1755203172881,15.1511761,4541.5,4541.4,3.69]
[1755203173307,15.73675141,4541.5,4541.4,4.92]
[1755203173713,15.73575141,4541.5,4541.4,5.3838]
[1755203174013,15.73575141,4541.5,4541.4,4.92]
[1755203174620,15.73575141,4541.5,4541.4,6.15]
[1755203174819,15.73565422,4541.5,4541.4,6.15]
[1755203175023,15.15007891,4541.5,4541.4,6.15]
[1755203175585,11.70607891,4541.5,4541.4,6.15]
[1755203175783,15.14907891,4541.5,4541.4,6.6138]
[1755203176016,15.14907891,4541.5,4541.4,7.8438]
[1755203176722,8.7509391,4541.5,4541.4,8.948]
[1755203176934,12.1939391,4541.5,4541.4,8.948]
[1755203177089,12.7439391,4541.5,4541.4,8.948]
[1755203177284,12.1939391,4541.5,4541.4,10.178]
[1755203177526,14.39585476,4541.5,4541.4,10.178]
[1755203177832,15.14911473,4541.5,4541.4,8.61]
[1755203178031,15.73451216,4541.5,4541.4,8.61]
[1755203178191,15.14911473,4541.5,4541.4,8.61]
[1755203178555,15.7344264,4541.5,4541.4,9.0738]
[1755203178689,15.7344264,4541.5,4541.4,10.3038]
[1755203179334,10.08951074,4541.5,4541.4,11.408]
[1755203179502,13.53751074,4541.5,4541.4,11.408]
[1755203180031,13.53751074,4541.5,4541.4,12.638]
[1755203180328,9.1989391,4541.5,4541.4,13.00953417]
[1755203180539,8.731,4541.5,4541.4,13.00953417]
[1755203181050,5.3934,4541.5,4541.4,15.21149832]
[1755203181193,3.447,4541.5,4541.4,15.21149832]
[1755203181628,3.447,4541.5,4541.4,16.44149832]
[1755203182010,3.447,4541.5,4541.4,14.23953417]
[1755203182196,3.5574,4541.5,4541.4,13.868]
[1755203183131,3.5574,4541.5,4541.4,13.53]
[1755203183297,6.5574,4541.5,4541.4,14.0035]
[1755203183501,7.02516574,4541.5,4541.4,15.1985]
[1755203183708,9.2270814,4541.5,4541.4,14.0035]
[1755203184058,9.7770814,4541.5,4541.4,13.53]
[1755203184215,9.7770814,4541.5,4541.4,14.76]
[1755203184856,9.98003004,4541.5,4541.4,14.76]
[1755203185511,9.98003004,4541.5,4541.4,15.99]
[1755203186015,10.56534171,4541.5,4541.4,15.99]
[1755203186215,9.98003004,4541.5,4541.4,15.99]
[1755203187018,9.97997282,4541.5,4541.4,17.22]
[1755203187229,10.56528449,4541.5,4541.4,17.22]
[1755203187419,9.97997282,4541.5,4541.4,17.22]
[1755203188006,6.53297282,4541.5,4541.4,17.22]
[1755203188350,9.7770814,4541.5,4541.4,18.45]
[1755203189138,9.2270814,4541.5,4541.4,18.45]
[1755203189417,9.7770814,4541.5,4541.4,18.45]
[1755203189943,9.7770814,4541.5,4541.4,19.68]
[1755203191150,9.77673168,4541.5,4541.4,19.68]
[1755203191450,11.02843168,4541.5,4541.4,20.91]
[1755203191673,41.87551088,4541.5,4541.4,8.5451279]
[1755203191864,5.75235211,4540.6,4539.9,6.15]
[1755203192030,15.67097716,4540.6,4539.9,6.15]
[1755203192216,16.24879318,4540.6,4539.9,6.15]
[1755203192419,15.78137716,4540.6,4539.9,6.15]
[1755203192717,16.24868326,4540.6,4539.9,6.15]
[1755203192933,16.24868326,4540.6,4540.5,1.231]
[1755203193355,17.50038326,4540.6,4540.5,1.231]
[1755203193552,17.94178326,4540.6,4540.5,1.231]
[1755203193866,17.16283741,4540.6,4540.5,1.231]
[1755203194365,17.16283741,4540.6,4540.5,2.461]
[1755203195125,16.95999774,4540.6,4540.5,2.461]
[1755203195326,17.16282725,4540.6,4540.5,2.461]
[1755203195838,17.16282725,4540.6,4540.5,3.691]
[1755203196341,15.18788382,4540.6,4540.5,3.691]
[1755203196743,15.73788382,4540.6,4540.5,3.691]
[1755203197050,15.84833482,4540.6,4540.5,3.691]
[1755203197224,15.84833482,4540.6,4540.5,4.921]
[1755203197430,15.84833482,4540.6,4540.5,5.3945]
[1755203197431,5.8627061,4540.6,4540.5,5.3945]
[1755203197638,9.3077061,4540.6,4540.5,6.5895]
[1755203197839,12.8577061,4540.6,4540.5,6.5895]
[1755203198142,8.8627061,4540.6,4540.5,6.5895]
[1755203198355,8.8404,4540.6,4540.5,7.13058718]
[1755203198566,8.8404,4540.6,4540.5,8.36058718]
[1755203198929,5.3954,4540.6,4540.5,10.56298779]
[1755203199132,5.285,4540.6,4540.5,10.56298779]
[1755203199329,8.73,4540.6,4540.5,10.56298779]
[1755203200171,8.73,4540.6,4540.5,11.79298779]
[1755203200333,5.285,4540.6,4540.5,11.79298779]
[1755203200542,8.731,4540.6,4540.5,11.79298779]
[1755203200932,8.731,4540.6,4540.5,8.39558718]
[1755203200933,11.731,4540.6,4540.5,8.39558718]
[1755203201163,11.731,4540.6,4540.5,7.381]
[1755203201379,11.731,4540.6,4540.5,8.611]
[1755203202237,12.281,4540.6,4540.5,8.611]
[1755203202878,12.281,4540.6,4540.5,9.841]
[1755203203059,12.74976748,4540.6,4540.5,9.841]
[1755203203237,12.281,4540.6,4540.5,9.841]
[1755203203854,14.95205404,4540.6,4540.5,9.841]
[1755203204038,15.15549016,4540.6,4540.5,9.841]
[1755203204240,14.95205404,4540.6,4540.5,11.071]
[1755203204981,16.20375404,4540.6,4540.5,11.071]
[1755203205689,16.20375404,4540.6,4540.5,12.301]
[1755203206940,16.20375404,4540.6,4540.5,13.531]
[1755203207543,14.95205404,4540.6,4540.5,13.531]
[1755203208375,14.95205404,4540.6,4540.5,14.761]
[1755203209779,14.95205404,4540.6,4540.5,15.991]
[1755203211482,14.95205404,4540.6,4540.5,17.221]
[1755203212490,15.15552267,4540.6,4540.5,17.221]
[1755203212692,16.46792267,4540.6,4540.5,17.221]
[1755203212911,16.46792267,4540.6,4540.5,18.451]
[1755203213216,16.46792542,4540.6,4540.5,18.451]
[1755203213706,47.52471657,4540.6,4540.5,18.451]
[1755203213907,47.25860669,4540.6,4540.5,18.451]
[1755203214408,47.25860669,4540.6,4540.5,19.681]
[1755203214608,48.43437555,4540.6,4540.5,19.681]
[1755203214900,37.07640061,4540.5,4540.4,1e-08]
[1755203215054,39.24613585,4540.5,4540.4,1e-08]
[1755203215261,39.85894516,4540.5,4540.4,1e-08]
[1755203215500,41.15549247,4540.5,4540.4,1e-08]
[1755203215692,41.15549247,4540.5,4540.4,1.23000001]
[1755203215893,41.15549247,4540.5,4540.0,23.371]
[1755203215894,1.874,4540.1,4540.0,23.371]
[1755203216094,41.16626246,4540.1,4540.0,13.95010571]
[1755203216293,42.95370492,4540.1,4540.0,11.5697595]
[1755203216590,42.73259316,4540.1,4540.0,11.5697595]
[1755203217019,44.29376617,4540.1,4540.0,11.5697595]
[1755203217218,44.29376617,4540.1,4540.0,12.7997595]
[1755203217421,42.73259316,4540.1,4540.0,12.7997595]
[1755203218079,44.29376617,4540.1,4540.0,12.7997595]
[1755203218281,42.73259316,4540.1,4540.0,12.7997595]
[1755203218935,38.81519316,4540.1,4540.0,14.0297595]
[1755203219257,41.95551771,4540.1,4540.0,14.0297595]
[1755203219538,42.42791771,4540.1,4540.0,14.0297595]
[1755203219683,39.28759316,4540.1,4540.0,14.0297595]
[1755203219881,42.42791771,4540.1,4540.0,14.0297595]
[1755203220387,42.42791771,4540.1,4540.0,15.2597595]
[1755203220727,42.42791771,4540.1,4540.0,15.1449412]
[1755203221086,42.42756531,4540.1,4540.0,15.1449412]
[1755203221843,42.73224076,4540.1,4540.0,16.3749412]
[1755203222425,42.42756531,4540.1,4540.0,16.3749412]
[1755203222594,42.42756531,4540.1,4540.0,15.8249412]
[1755203222595,42.64867707,4540.1,4540.0,15.8249412]
[1755203222798,42.95335252,4540.1,4540.0,15.8249412]
[1755203223236,44.51254737,4540.1,4540.0,17.0549412]
[1755203223736,44.24616764,4540.1,4540.0,17.0549412]
[1755203223953,44.77385797,4540.1,4540.0,17.0549412]
[1755203224154,44.77385797,4540.1,4540.0,17.04728481]
[1755203224320,43.21466312,4540.1,4540.0,17.04728481]
[1755203224853,43.21466312,4540.1,4540.0,18.27728481]
[1755203224854,42.95241435,4540.1,4540.0,18.27728481]
[1755203225007,44.5116092,4540.1,4540.0,18.27728481]
[1755203225428,42.95241435,4540.1,4540.0,18.27728481]
[1755203225801,42.95241435,4540.1,4540.0,12.12295235]
[1755203225998,1.32170235,4539.6,4539.3,3.691]
[1755203226223,34.43210235,4539.6,4539.4,0.4468]
[1755203226423,40.41573523,4539.6,4539.5,1.771]
[1755203226701,40.38164518,4539.6,4539.5,1.771]
[1755203227346,1.8609841,4539.6,4539.5,1.771]
[1755203227547,1.19075481,4539.6,4539.5,3.5472]
[1755203227848,4.63575481,4539.6,4539.5,3.5472]
[1755203228049,1.19075481,4539.6,4539.5,3.5472]
[1755203228219,4.63575481,4539.6,4539.5,3.5472]
[1755203228419,1.19075481,4539.6,4539.5,3.5472]
[1755203228731,4.63575481,4539.6,4539.5,3.5472]
[1755203229046,4.63575481,4539.6,4539.5,4.7772]
[1755203229831,1.19075481,4539.6,4539.5,6.98008578]
[1755203230157,1.08035481,4539.6,4539.5,6.98008578]
[1755203230322,0.1104,4539.8,4539.7,2.20278873]
[1755203230525,5.289,4540.5,4539.7,1.77]
[1755203230846,3.445,4540.4,4539.8,3.9726997]
[1755203231047,0.1104,4540.1,4539.9,1.77]
[1755203231266,3.445,4540.0,4539.9,2.20269168]
[1755203231423,3.445,4540.0,4539.9,2.64323082]
[1755203231731,3.445,4540.0,4539.9,4.32003082]
[1755203231948,3.445,4540.0,4539.9,5.64323082]
[1755203232481,3.445,4540.0,4539.9,5.75363082]